Cogmind - Beta 16.1 @@@ ROGUE MODE // 2026.04.05 @ 13:30:39 Player: WetterLettuce Result: Destroyed by D5-T4F(R) with Subdweller Laser Performance ------------- Evolutions (0) 0 Regions Visited (3) 600 Robots Destroyed (21) 105 Value Destroyed (466) 466 Prototype IDs (0) 0 Alien Tech Used (0) 0 Bonus (60) 60 TOTAL SCORE: 1231 Bonus ------- Follower Combat Kills 60 Cogmind --------- Core Integrity 0/250 Matter 270/300 Energy 250/250 System Corruption 0% Temperature Cool (6) Movement Rolling (110) Location -10/Subcaves Parts ------- > --- POWER (1) -------- Ion Engine > --- PROPULSION (2) --- Subdweller Monowheel > --- UTILITY (2) ------ Disposable Heat Sink Disposable Heat Sink > --- WEAPON (2) ------- Subdweller Beam Cannon Subdweller Machine Gun > --- INVENTORY (5) ---- Aluminum Leg Aluminum Leg Mining Laser Scrap Shield Fragment (20) Peak State ------------ > --- POWER ------------ Ion Engine > --- PROPULSION ------- Subdweller Monowheel Subdweller Monowheel > --- UTILITY ---------- Disposable Heat Sink Disposable Heat Sink > --- WEAPON ----------- Subdweller Beam Cannon Subdweller Machine Gun > --- INVENTORY -------- Aluminum Leg Aluminum Leg Aluminum Leg Subdweller Monowheel Mining Laser [Rating: 13] Favorites ----------- Power Ion Engine Engine Ion Engine Propulsion Aluminum Leg Leg Aluminum Leg Wheel Compact Wheel Utility Small Storage Unit Device Improved Heat Sink Storage Small Storage Unit Protection Scrap Shield Weapon Assault Rifle Energy Gun EM Pulse Gun Energy Cannon Subdweller Beam Cannon Ballistic Gun Assault Rifle Special Weapon Mining Laser Build | -11 -10 -10 -10 ------- Run | Yrd Mat Min Sub Slots Evolved . | . . . . Power . | . . . . Propulsion . | . . . . Utility . | . . . . Weapon . | . . . . Parts Attached 30 | 6 5 6 13 Power 4 | 1 1 2 . Engine 4 | 1 1 2 . Core . | . . . . Reactor . | . . . . Propulsion 9 | 2 . 3 4 Treads . | . . . . Leg 4 | . . 3 1 Wheel 5 | 2 . . 3 Hover . | . . . . Flight . | . . . . Utility 5 | 1 . 1 3 Device 3 | . . 1 2 Storage 1 | 1 . . . Processor . | . . . . Hackware . | . . . . Protection 1 | . . . 1 Artifact . | . . . . Weapon 12 | 2 4 . 6 Energy Gun 1 | 1 . . . Energy Cannon 1 | . . . 1 Ballistic Gun 9 | 1 4 . 4 Ballistic Cannon . | . . . . Launcher . | . . . . Special Weapon 1 | . . . 1 Impact Weapon . | . . . . Slashing Weapon . | . . . . Piercing Weapon . | . . . . Special Melee Weapon . | . . . . Unidentified Prototypes . | . . . . Parts Lost 8 | . 2 1 5 Power 2 | . 1 1 . Propulsion . | . . . . Utility 1 | . . . 1 Weapon 5 | . 1 . 4 Highest Loss Streak 2 | . 2 1 2 To Critical Strikes . | . . . . Average Backups 6 | 1 6 7 6 Power . | . 1 . . Propulsion 2 | . 2 2 2 Utility . | . . 1 . Weapon 2 | . 2 4 2 Tool/Special . | . . . . Unused Backups 4 | . 1 . 3 Power . | . . . . Propulsion 1 | . . . 1 Utility 1 | . . . 1 Weapon 2 | . 1 . 1 Tool/Special . | . . . . Average Slot Usage (%) 92 | . 84 87 95 Engine 13 | . 13 13 14 Leg 16 | . . 27 18 Wheel 10 | . 28 . 9 Device 10 | . . 2 14 Storage 9 | . 14 14 7 Protection 1 | . . . 2 Energy Cannon 1 | . . . 2 Ballistic Gun 24 | . 25 28 23 Peak Build Rating 13 | 6 6 9 13 Average Rating 8 | 4 5 6 9 On Entrance 5 | . 6 6 9 Avg Prop Armor Cover (%) 6 | . . . 6 Naked Turns . | . . . . Heaviest Build 29 | 11 12 15 29 Greatest Support 40 | 26 26 20 40 Greatest Overweight (x) 1 | 1 . . 1 Average Overweight (x) . | . . . . Largest Inventory Capacity 8 | 8 8 8 8 Average Capacity 7 | 6 8 8 6 Most Carried 8 | 4 8 8 8 Average Carried 6 | 2 6 7 6 Final Capacity 8 | 8 8 8 5 Final Carried 8 | 4 8 8 4 Class Distribution -------------------- 85% | Mutant 14% | Scavenger-Mutant Dominant Class ---------------- Mutant | -10/Materials Mutant | -10/Mines Mutant | -10/Subcaves Resources | -11 -10 -10 -10 ----------- Run | Yrd Mat Min Sub Matter Collected 849 | 187 247 113 302 Remotely . | . . . . Salvage Created 559 | . 147 . 412 Parts 37 | . 14 . 23 Haulers Intercepted . | . . . . Recyclers Shooed . | . . . . Parts Field Recycled . | . . . . Retrieved Matter . | . . . . Parts Self-Destructed 10 | . . . 10 Prevented . | . . . . Parts Restored . | . . . . Kills | -11 -10 -10 -10 ------- Run | Yrd Mat Min Sub Combat Hostiles Destroyed 20 | . 8 . 12 Guns 19 | . 8 . 11 Cannons 1 | . . . 1 Classes Destroyed 3 | . 2 . 1 Watcher 1 | . 1 . . Swarmer 12 | . 8 . 4 Subdweller 8 | . . . 8 Best Kill Streak 3 | . 3 . 3 Combat Bots Only 3 | . 3 . 3 Max Kills in Single Turn 1 | . 1 . 1 Gunslinging . | . . . . Exploded . | . . . . Melee . | . . . . Uniques/NPCs Destroyed . | . . . . Combat | -11 -10 -10 -10 -------- Run | Yrd Mat Min Sub Hostile Shots Fired 144 | . 74 18 52 Missed 40 | . 23 4 13 Hits 104 | . 51 14 39 Projectile 104 | . 51 14 39 Damage Taken 1380 | . 435 207 738 Core 272 | . 75 51 146 Absorbed by Shields . | . . . . Core Remaining (%) 100 | 100 . . . Volleys Fired 66 | . 24 8 34 Largest 2 | . 2 2 2 Hottest 110 | . 40 40 110 Shots Fired 127 | . 48 16 63 Gun 124 | . 48 16 60 Cannon 1 | . . . 1 Launcher . | . . . . Special 2 | . . . 2 Kinetic 124 | . 48 16 60 Thermal 3 | . . . 3 Explosive . | . . . . Electromagnetic . | . . . . Robot Hit Streak 8 | . 6 4 8 Robot Miss Streak 5 | . 5 2 3 Penetration Max . | . . . . Secondary Targets 3 | . 3 . . Max Gunslinging Chain 1 | . 1 . . Shots Hit Robots 77 | . 24 12 41 Core Hits 30 | . 9 1 20 Critical Kills . | . . . . Critical Parts Destroyed . | . . . . Critical Strikes . | . . . . Melee Attacks . | . . . . Impact . | . . . . Slashing . | . . . . Piercing . | . . . . Sneak Attacks . | . . . . Combat Hostiles . | . . . . Follow-up Attacks . | . . . . Damage Inflicted 1062 | . 322 146 594 Guns 1033 | . 322 146 565 Cannons 29 | . . . 29 Explosions . | . . . . Melee . | . . . . Ramming . | . . . . Kinetic 1033 | . 322 146 565 Thermal 29 | . . . 29 Explosive . | . . . . Electromagnetic . | . . . . Impact . | . . . . Slashing . | . . . . Piercing . | . . . . Highest Corruption . | . . . . Average Corruption . | . . . . Corruption Purged . | . . . . Corruption Blocked . | . . . . Overload Shots . | . . . . Overflow Damage . | . . . . Projectiles . | . . . . Explosions . | . . . . Melee . | . . . . Knockbacks . | . . . . Impact . | . . . . Kinetic . | . . . . Secondary . | . . . . Self-Inflicted Damage . | . . . . Shots . | . . . . Rammed . | . . . . Targets Rammed . | . . . . Kicked . | . . . . Crushed . | . . . . Highest Temperature 8 | . 6 8 . Average Temperature 3 | . 6 3 . Received Heat Transfer 222 | . . 114 108 Siege Activations . | . . . . Martial Activations . | . . . . Shielding Activations . | . . . . Robots Disrupted . | . . . . Combat Hostiles . | . . . . Robots Corrupted . | . . . . Combat Hostiles . | . . . . Parts Fried . | . . . . Impact Corruptions . | . . . . Robots Melted . | . . . . Combat Hostiles . | . . . . Parts Melted 1 | . . . 1 Heat Transferred 37 | . . . 37 Parts Sabotaged . | . . . . Parts Stolen . | . . . . Parts Stripped . | . . . . Power Chain Reactions . | . . . . Alert | -11 -10 -10 -10 ------- Run | Yrd Mat Min Sub Maximum Alert Level . | . . . . Low Security (%) 100 | 100 100 100 . Level 1 . | . . . . Level 2 . | . . . . Level 3 . | . . . . Level 4 . | . . . . Level 5 . | . . . . High Security . | . . . . Max Security . | . . . . Peak Influence 100 | . 100 39 . Initial 33 | . . 33 . Average 23 | . 39 11 . Influence Increases 391 | . 217 69 105 Destroy 0b10 Robot/C 280 | . 160 40 80 Destroy 0b10 Robot/NC 5 | . 5 . . Destroy Leader 42 | . 22 10 10 Allied During Kill 4 | . . 4 . Disable Machine 15 | . 15 . . Lose Combat Pursuer 45 | . 15 15 15 Influence Decreases 391 | . 130 156 105 Entered New Map 54 | . . 54 . Time Decay 287 | . 110 82 95 Lost Part 30 | . 20 . 10 Lost Ally 20 | . . 20 . Squads Dispatched . | . . . . Investigation . | . . . . Extermination . | . . . . Reinforcement . | . . . . Assault . | . . . . Garrison . | . . . . Intercept . | . . . . Searches Triggered . | . . . . Construction Impeded . | . . . . Haulers Reinforced . | . . . . Active Scanning Responses . | . . . . Cargo Convoy Interrupts . | . . . . Stealth | -11 -10 -10 -10 --------- Run | Yrd Mat Min Sub Distress Signals 1 | . 1 . . Communications Jammed . | . . . . Distress Signals . | . . . . Times Spotted 28 | . 11 2 15 Peak Tracking Total 4 | . 4 2 3 Tactical Retreats 3 | . 1 1 1 Traps | -11 -10 -10 -10 ------- Run | Yrd Mat Min Sub Traps Triggered 1 | . 1 . . Indirectly . | . . . . Trap Hack Attempts . | . . . . Triggered . | . . . . Disarmed . | . . . . Reprogrammed . | . . . . Reused . | . . . . Traps Extracted . | . . . . Installed . | . . . . Triggered . | . . . . Machines | -11 -10 -10 -10 ---------- Run | Yrd Mat Min Sub Machines Disabled 1 | . 1 . . Max in Single Turn 1 | . 1 . . Machines Repaired . | . . . . Machines Dismantled . | . . . . Machines Sabotaged . | . . . . Overloaded Fab Kills . | . . . . Hacking | -11 -10 -10 -10 --------- Run | Yrd Mat Min Sub Machines Accessed 4 | . 3 . 1 Terminals 3 | . 3 . . Fabricators . | . . . . Repair Stations . | . . . . Recycling Units . | . . . . Scanalyzers . | . . . . Garrison Access . | . . . . Total Hacks 9 | . 6 . 3 Successful 6 | . 3 . 3 Failed 3 | . 3 . . Catastrophic 1 | . 1 . . Database Lockouts . | . . . . Manual 5 | . 5 . . Terminals 6 | . 6 . . Fabricators . | . . . . Repair Stations . | . . . . Recycling Units . | . . . . Scanalyzers . | . . . . Garrison Access . | . . . . Terminal Hacks 4 | . 1 . 3 Record 3 | . . . 3 Zone Layout 1 | . 1 . . Fabricator Hacks . | . . . . Repair Station Hacks . | . . . . Recycling Unit Hacks . | . . . . Scanalyzer . | . . . . Garrison Access Hacks . | . . . . Unauthorized Hacks 2 | . 2 . . Terminals 2 | . 2 . . Botnet 2 | . 2 . . Fabricators . | . . . . Repair Stations . | . . . . Recycling Units . | . . . . Scanalyzers . | . . . . Garrison Access . | . . . . Data Cores Recovered . | . . . . Used . | . . . . Hacking Detections 3 | . 3 . . Full Trace Events . | . . . . Feedback Events . | . . . . Feedback Blocked . | . . . . Robot Schematics Acquired . | . . . . Robots Built . | . . . . Authchips . | . . . . Time . | . . . . Total Robot Build Rating . | . . . . Part Schematics Acquired . | . . . . Parts Built . | . . . . Authchips . | . . . . Time . | . . . . Total Part Build Rating . | . . . . Part Studies Acquired . | . . . . Parts Repaired . | . . . . Time . | . . . . Parts Recycled . | . . . . Recycled Matter . | . . . . Retrieved Matter . | . . . . Retrieved Components . | . . . . Parts Scanalyzed . | . . . . Part Schematics Acquired . | . . . . Parts Damaged . | . . . . Bothacking | -11 -10 -10 -10 ------------ Run | Yrd Mat Min Sub Used RIF Installer . | . . . . Robots Hacked . | . . . . Non-combat . | . . . . Combat . | . . . . Robot Hacks Applied . | . . . . Relay Couplers Released . | . . . . Fabnet Peak Effective % . | . . . . Robots Rewired . | . . . . Allies Hacked . | . . . . Hacks Repelled . | . . . . Allies | -11 -10 -10 -10 -------- Run | Yrd Mat Min Sub Total Allies 3 | . . 3 . Largest Group 3 | . . 3 1 Highest-Rated Group 40 | . . 40 8 Highest-Rated Ally 16 | . . 16 8 Total Orders . | . . . . Ally Attacks 20 | . . 17 3 Total Damage 218 | . . 196 22 Kills 2 | . . 2 . Allies Corrupted . | . . . . Allies Melted . | . . . . Intel | -11 -10 -10 -10 ------- Run | Yrd Mat Min Sub Active Infowar (turns) . | . . . . Robot Analysis Total . | . . . . Derelict Logs Recovered 2 | . . . 2 Drone Launches . | . . . . Drone Recoveries . | . . . . Exploration | -11 -10 -10 -10 ------------- Run | Yrd Mat Min Sub Turns Passed 1791 | 41 273 301 1176 Spaces Moved 1306 | 34 206 207 859 Core 8 | 8 . . . Treads . | . . . . Legs 662 | . . 207 455 Wheels 636 | 26 206 . 404 Hover . | . . . . Flight . | . . . . Fastest Speed 50 | 50 90 120 100 Average Speed 110 | 84 90 120 114 Slowest Speed 120 | 100 90 120 120 Overloaded Moves . | . . . . Propulsion Burnouts . | . . . . Robots Hopped . | . . . . Potential Cave-ins . | . . . . Cave-ins Triggered . | . . . . Exploration Rate (%) 40 | 4 51 45 61 Regions Visited 3 Branch Regions 2 Pre-discovered Areas 2 | . . . 2 Known Exits Taken . | . . . . Unknown Exits Taken 3 | 1 1 1 . Scrap Searched 5 | . . 1 4 Spaces Dug . | . . . . Terrain Destroyed . | . . . . Melee . | . . . . Projectile . | . . . . AOE . | . . . . Terrain Rammed . | . . . . Walls Destroyed . | . . . . Machines Disabled . | . . . . Actions | -11 -10 -10 -10 --------- Run | Yrd Mat Min Sub Total 1518 | 43 245 244 986 Wait 74 | . . 21 53 Move 1303 | 33 205 206 859 Hop . | . . . . Pick Up 19 | 4 8 1 6 Fast Attach 13 | 6 . 1 6 Attach 7 | . 3 1 3 Detach . | . . . . Swap 17 | . 2 4 11 Drop 19 | . 3 2 14 Fire 66 | . 24 8 34 Melee . | . . . . Ram . | . . . . Kick . | . . . . Crush . | . . . . Escape Stasis . | . . . . Rewire . | . . . . Trap . | . . . . Miscellaneous . | . . . . Route ------- -11/Scrapyard -10/Materials (discovered 3 exits: [*Mat] / [*Min x2]) -10/Mines (discovered 2 exits: [*Mat] / *Sub) -10/Subcaves (discovered 3 exits: [*Mat x2] / Rec) History --------- Turn | Location | Event 21 | -11/Scrapyard | Discovered new exit (range 16) 42 | -11/Scrapyard | Entered Materials 50 | -10/Materials | Discovered new exit (range 5) 158 | -10/Materials | Discovered new exit (range 6) 297 | -10/Materials | Discovered new exit (range 8) 310 | -10/Materials | Build established: Mutant 315 | -10/Materials | Entered Mines 316 | -10/Mines | Assembled infested the area 418 | -10/Mines | Assisted by bots powering up and referring to "LRC-V3" 434 | -10/Mines | Discovered new exit (range 9) 441 | -10/Mines | YI-UF0 nonchalantly dropped a Grenade Launcher on the ground 511 | -10/Mines | Core integrity fell below 50% 597 | -10/Mines | Discovered new exit (range 12) 616 | -10/Mines | Entered Subcaves 616 | -10/Subcaves | Accompanied by 1 ally 617 | -10/Subcaves | Approached by a straggling Scientist 621 | -10/Subcaves | Learned location of 1 exit from Materials 639 | -10/Subcaves | A swath of the cavern ceiling suddenly collapsed 735 | -10/Subcaves | Learned location of Zion (-7) 735 | -10/Subcaves | Met a Zionite searching for "candidates" 863 | -10/Subcaves | Shifting Twisted Machinery released Sub. Monowheel 940 | -10/Subcaves | Disturbed a concealed Subdweller 1319 | -10/Subcaves | Visited Clippyterm 1322 | -10/Subcaves | Identified exit to Recycling 1322 | -10/Subcaves | Learned Factory garrison access intel 1414 | -10/Subcaves | Discovered new exit (range 5) 1425 | -10/Subcaves | Discovered new exit (range 14) 1434 | -10/Subcaves | Core integrity fell below 20% 1692 | -10/Subcaves | A swath of the cavern ceiling suddenly collapsed 1792 | -10/Subcaves | Destroyed by D5-T4F(R) with Subdweller Laser Last Messages --------------- Acquired 10 matter. Searching scrap... Found Battle Cannon. Found Sub. Monowheel. Found 70 Matter. Dropped Com. Wheel. Acquired Sub. Monowheel. Acquired 20 matter. Dropped Aluminum Leg. Acquired Scrap Shield Fragment. JD-O4I(R) destroyed. Acquired 2 matter. 14 Matter crushed. A swath of the cavern ceiling suddenly collapses. Sub. Monowheel shoots sparks and powers down. Dropped Broken Sub. Monowheel. 7D-6UM(u) deconstructs Twisted Machinery. Sub. Monowheel shoots sparks and powers down. Dropped Broken Sub. Monowheel. Map ----- +----------------------------------------------------+ | ?????????????????????????????????????????????????? | | ?????????????????????????????????????????????????? | | ?????????????????????????????????????????????????? | | ?????????????????????????????????????????????????? | | ?????????????????????????????????????????????????? | | ?????????????????????????????????????????????????? | | ?????????????????????????????????????????????????? | | ?????????????????????????????????????????????????? | | ????????????????????????????????????###??????????? | | ????????????????????????????????????# ??????????? | | ?????????????????????? ?????????????# ??###?????? | | ???????????????????? ?????????????# ### #?????? | | ????????????????????? ?????????????# # #?????? | | ????????????????????? ????????????## # ##????? | | ??????????????"?????? ???????????? #????? | | ??????????????? ????? ?????????????# ###### | | ??????????????"" #???# ???????????# ## | | ?????????????? "" #### ??????????##" #? | | ???????????????? ?????????##" #?# | | ????????????????? ""?????????# ### | | ?????????????????? ""?????????# ## | | ??????????????????? ""?????????#### | | ????????????????????? R #???????????# | | ?????????????????????? ??####?????# ### | | ???????????????????????# #### ##????## ## | | ???????????????????????# @# ####### ## ### | | ??????????????????????## " # ####?# | | ??????????????????????# #???# | | ??????????????????????## ## "" ##?# ## | | ???????????????????????#####" =#"# ### #?# | | ???????????????????????????# ###"##" ? #?# | | ???????????????????????????## ## ## #?# | | ???????????????????????????# #??### #?? | | ???????????????????????????###" #???## #?? | | ??????????????????????????????## "#????# #?? | | ???????????????????????????????? " #??# #### | | ???????????????????????????????? #???# #### | | ?????????????????????????????????#####????###?# | | ??????????????????????????????????????????????#### | | ?????????????????????????????????????????????????? | | ?????????????????????????????????????????????????? | | ?????????????????????????????????????????????????? | | ?????????????????????????????????????????????????? | | ?????????????????????????????????????????????????? | | ?????????????????????????????????????????????????? | | ?????????????????????????????????????????????????? | | ?????????????????????????????????????????????????? | | ?????????????????????????????????????????????????? | | ?????????????????????????????????????????????????? | | ?????????????????????????????????????????????????? | +----------------------------------------------------+ Best States ------------- Heat Dissipation 39 Coolant Potential 100 Energy Generation 10 Energy Capacity 250 Matter Stores 300 Matter Capacity 300 Sight Range 16 Terrain Scan Density 10 Armor Coverage 800 Evasion (%) 55 Item Schematics ----------------- None Robot Schematics ------------------ None Fabricated ------------ Nothing Repaired ---------- Nothing Studied --------- None Alien Tech Used ----------------- None Achievements -------------- None Challenges ------------ None Game ------ Seed AmuletSpliceCarapace Manual? 0 Play Time 00:15:07 Cumulative 107.4 hours Start 2026.04.05 @ 13:18:23 End 2026.04.05 @ 13:30:39 Sessions 1 Manual Loads 0 Difficulty Rogue Special Mode None Game No. 125 Rogue 125 Adventurer 0 Explorer 0 Win Type - Total 1 Types 1/0/0/0/0/0/0/0/0/0 Lore% 74 Gallery% 54 Achievement% 39 Wizard Run 0 Options --------- Layout 1 ASCII 0 Keyboard 0 Movement Mouse Keybinds 0 Fullscreen 2 Font 24/Smallcaps Map View 50x35 Zoom Use 0% Tactical HUD 0 Map Filters NONE Filters NONE Steam 1 RUN: 03a6554b-14f3-4b43-8657-4c00aa3cad3d